bitfinex-derivatives/quotes_SOLF0:USTF0_20241218
["timestamp","ask_amount","ask_price","bid_price","bid_amount"]
[1734555057660,37.64822977,209.08,208.93,5.76456431]
[1734555057855,2.3939,209.05,208.96,2.3949]
[1734555058060,37.64822977,209.04,208.84,37.64822977]
[1734555058455,2.3944,209.02,208.94,2.3951]
[1734555058651,3.0756,209.07,208.84,37.64822977]
[1734555058652,37.64822977,209.0,208.84,37.64822977]
[1734555058858,37.64822977,208.92,208.74,6.4972487]
[1734555059055,37.64822977,208.88,208.74,6.4972487]
[1734555059265,37.64822977,208.88,208.75,5.8887289]
[1734555059454,37.64822977,208.88,208.81,2.3967]
[1734555059657,40.60752977,208.92,208.77,6.4972487]
[1734555059957,54.72,208.93,208.89,2.3957]
[1734555060162,37.64822977,209.0,208.79,37.64822977]
[1734555060359,43.52546398,209.0,208.83,37.64822977]
[1734555061159,40.61942977,209.04,208.98,2.3947]
[1734555061464,37.64822977,209.03,208.87,37.64822977]
[1734555061662,54.74,209.06,208.92,2.3953]
[1734555061863,54.74,209.06,208.88,7.77252745]
[1734555062058,54.74,209.06,208.88,2.9915]
[1734555062358,54.74,209.06,208.91,5.74582045]
[1734555062661,37.64822977,208.99,208.87,6.4972487]
[1734555062858,37.64822977,209.03,208.89,5.8171114]
[1734555063061,57.9102,209.06,208.89,5.8171114]
[1734555063260,57.9102,209.06,209.01,2.3943]
[1734555063661,57.9102,209.06,208.9,37.64822977]
[1734555063662,37.81615977,209.11,208.9,37.64822977]
[1734555064059,5.76076856,209.1,208.94,6.4972487]
[1734555064263,5.76076856,209.1,208.95,4.79575364]
[1734555064468,5.76076856,209.1,208.96,4.79575364]
[1734555064756,5.76076856,209.1,208.97,4.79575364]
[1734555064964,5.76076856,209.1,209.0,2.3945]
[1734555065160,37.81615977,209.11,208.98,4.79575364]
[1734555065360,37.81615977,209.11,208.99,6.4972487]
[1734555065561,37.64822977,209.07,208.99,6.4972487]
[1734555066055,37.64822977,209.07,208.96,25.72854524]
[1734555066261,37.81615977,209.11,208.96,25.72854524]
[1734555066460,37.81615977,209.11,208.99,4.82840661]
[1734555066660,37.81615977,209.11,209.0,4.82840661]
[1734555066861,0.16793,209.11,209.02,6.4972487]
[1734555067064,0.16793,209.11,209.02,44.14547847]
[1734555067261,3.2228,209.32,209.02,44.14547847]
[1734555067262,37.64822977,209.23,209.06,37.64822977]
[1734555067461,37.64822977,209.27,209.06,37.64822977]
[1734555067765,37.64822977,209.23,209.1,6.4972487]
[1734555068156,37.64822977,209.23,209.15,2.3928]
[1734555068361,37.64822977,209.23,209.14,25.72854524]
[1734555068557,37.64822977,209.15,209.14,20.87744524]
[1734555068765,37.64822977,209.15,209.1,76.47632529]
[1734555068962,37.64822977,209.11,209.08,127.47311128]
[1734555069368,37.64822977,209.19,209.08,127.47311128]
[1734555069568,37.64822977,209.23,209.09,4.86396105]
[1734555069862,37.64822977,209.23,209.1,4.86396105]
[1734555070067,37.64822977,209.23,209.11,4.86396105]
[1734555070767,37.64822977,209.19,209.0,37.64822977]
[1734555070967,37.64822977,209.19,209.01,7.90158663]
[1734555071163,2.3919,209.24,209.18,2.3925]
[1734555071362,165.26274373,209.25,209.08,37.64822977]
[1734555071568,165.26274373,209.25,209.09,4.86960495]
[1734555071869,159.43192934,209.25,209.12,37.64822977]
[1734555072063,159.43192934,209.32,209.16,37.64822977]
[1734555072262,159.43192934,209.32,209.2,37.64822977]
[1734555072564,159.43192934,209.32,209.21,4.87246122]
[1734555072763,159.43192934,209.32,209.24,37.64822977]
[1734555072962,37.64822977,209.41,209.34,2.3906]
[1734555073158,165.15726691,209.42,209.25,9.3666]
[1734555073365,159.43192934,209.42,209.25,9.3666]
[1734555073563,2.39,209.41,209.33,2.3908]
[1734555073764,5.62595131,209.43,209.25,9.3666]
[1734555073961,37.64822977,209.45,209.28,37.64822977]
[1734555074376,5.66573459,209.46,209.29,4.87246122]
[1734555074670,2.3896,209.44,209.35,2.3906]
[1734555074865,37.64822977,209.45,209.36,4.87246122]
[1734555075062,2.3897,209.43,209.37,4.87246122]
[1734555075269,37.64822977,209.45,209.28,43.27207671]
[1734555075564,5.66573459,209.46,209.29,4.86992717]
[1734555076065,37.64822977,209.45,209.3,4.86992717]
[1734555076263,2.3899,209.42,209.33,2.3908]
[1734555076569,2.3899,209.42,209.28,43.27207671]
[1734555076570,37.64822977,209.45,209.31,4.86992717]
[1734555076766,54.72,209.49,209.32,37.64822977]
[1734555076962,37.64822977,209.55,209.36,37.64822977]
[1734555077166,37.64822977,209.55,209.37,3.1539]
[1734555077367,40.03662977,209.55,209.37,3.1539]
[1734555077667,5.70719449,209.53,209.37,3.1539]
[1734555078069,5.70719449,209.53,209.38,4.86992717]
[1734555078474,8.09579449,209.53,209.44,2.3895]
[1734555078672,8.09579449,209.53,209.39,4.86992717]
[1734555078872,8.09579449,209.53,209.37,3.1539]
[1734555079175,37.64822977,209.59,209.4,37.64822977]
[1734555079369,54.7,209.61,209.44,37.64822977]
[1734555079576,5.71350269,209.6,209.44,37.64822977]
[1734555079775,37.64822977,209.55,209.43,5.70662102]
[1734555079968,37.64822977,209.55,209.41,10.90301396]
[1734555079969,2.3889,209.5,209.42,2.3898]
[1734555080276,5.71350269,209.6,209.41,10.90301396]
[1734555080468,37.64822977,209.59,209.41,10.90301396]
[1734555080675,37.64822977,209.59,209.47,2.3892]
[1734555080976,37.64822977,209.55,209.41,6.0593]
[1734555081375,37.64822977,209.51,209.38,5.61715937]
[1734555081570,2.3892,209.48,209.4,2.39]
[1734555081781,37.64822977,209.55,209.38,5.61715937]
[1734555081974,37.64822977,209.59,209.4,37.64822977]
[1734555082366,37.64822977,209.55,209.38,5.61715937]
[1734555082570,37.64822977,209.55,209.42,2.3897]
[1734555082778,5.71350269,209.6,209.39,4.82486981]
[1734555082972,37.64822977,209.55,209.39,4.82486981]
[1734555083273,37.64822977,209.59,209.39,37.64822977]
[1734555083577,37.64822977,209.59,209.4,4.81993721]
[1734555083778,54.7,209.61,209.47,37.64822977]
[1734555083981,37.64822977,209.67,209.47,37.64822977]
[1734555084477,5.65254583,209.66,209.47,37.64822977]
[1734555084679,5.65254583,209.66,209.44,37.64822977]
[1734555084887,5.65254583,209.66,209.5,5.81134454]
[1734555085075,37.64822977,209.63,209.5,5.81134454]
[1734555085676,5.65254583,209.66,209.5,5.81134454]
[1734555086677,37.64822977,209.67,209.5,5.81134454]
[1734555086976,43.46473383,209.67,209.5,9.02634454]
[1734555087378,37.64822977,209.67,209.5,9.02634454]
[1734555087580,37.64822977,209.71,209.5,9.02634454]
[1734555087876,5.64378081,209.68,209.5,9.02634454]
[1734555088281,37.64822977,209.67,209.5,5.81134454]
[1734555088679,37.64822977,209.59,209.45,8.01249991]
[1734555088879,37.64822977,209.59,209.47,5.81226899]
[1734555089180,37.64822977,209.55,209.37,3.0971]
[1734555089383,37.64822977,209.51,209.39,2.3902]
[1734555089779,2.39,209.42,209.35,2.3907]
[1734555089982,37.64822977,209.47,209.28,37.64822977]
[1734555090285,2.3898,209.44,209.36,2.3905]
[1734555090485,37.64822977,209.47,209.32,5.87358951]
[1734555090783,37.64822977,209.38,209.23,3.0971]
[1734555090989,37.64822977,209.34,209.22,4.79383718]
[1734555091381,37.64822977,209.3,209.18,3.2127]
[1734555091683,37.64822977,209.3,209.19,5.61807184]
[1734555091981,2.3917,209.27,209.19,5.61807184]
[1734555092182,37.64822977,209.26,209.19,5.61807184]
[1734555092384,37.64822977,209.22,209.19,5.61807184]
[1734555092783,37.64822977,209.22,209.08,4.80036001]
[1734555092981,37.64822977,209.26,209.09,37.64822977]
[1734555093188,37.64822977,209.3,209.13,37.64822977]
[1734555093389,54.62,209.39,209.17,37.64822977]
[1734555093390,37.64822977,209.34,209.17,37.64822977]
[1734555093585,2.3911,209.32,209.21,2.3923]
[1734555093783,43.51019135,209.34,209.14,2.9385]
[1734555093983,43.51019135,209.34,209.15,37.64822977]
[1734555094178,37.64822977,209.3,209.16,2.3928]
[1734555094391,37.64822977,209.26,209.12,5.79195088]
[1734555095090,37.64822977,209.3,209.12,5.79195088]
[1734555095682,37.64822977,209.26,209.12,5.79195088]
[1734555096781,37.64822977,209.3,209.12,5.79195088]
[1734555097889,2.3919,209.25,209.16,2.3928]
[1734555098091,37.64822977,209.3,209.12,5.79195088]
[1734555098494,2.3916,209.28,209.2,2.3924]
[1734555098687,37.64822977,209.3,209.12,5.79195088]
[1734555100499,37.64822977,209.34,209.15,37.64822977]
[1734555100794,37.64822977,209.34,209.27,2.3916]
[1734555100995,37.64822977,209.34,209.16,2.929]
[1734555101888,5.66088038,209.37,209.16,2.929]
[1734555101889,37.64822977,209.3,209.16,2.929]
[1734555102086,37.64822977,209.33,209.16,2.929]
[1734555102292,2.3913,209.3,209.23,2.392]
[1734555102488,37.64822977,209.33,209.16,2.929]
[1734555102993,2.3913,209.3,209.21,2.3923]
[1734555103197,37.64822977,209.26,209.16,2.929]
[1734555103594,2.3927,209.18,209.12,5.79195088]
[1734555103791,37.64822977,209.22,209.12,5.79195088]
[1734555104098,5.66088038,209.37,209.13,37.64822977]
[1734555104397,37.64822977,209.35,209.17,37.64822977]
[1734555104697,54.62,209.39,209.21,37.64822977]
[1734555104698,92.26822977,209.39,209.21,37.64822977]
[1734555104898,37.64822977,209.39,209.21,37.64822977]
[1734555105095,2.3912,209.31,209.18,3.1808]
[1734555105295,37.64822977,209.35,209.18,3.1808]
[1734555105997,37.64822977,209.35,209.23,5.6589203]
[1734555106201,2.391,209.33,209.27,2.3916]
[1734555106399,37.64822977,209.35,209.23,5.6589203]
[1734555106699,2.3906,209.36,209.3,2.3913]
[1734555107193,43.4529867,209.39,209.23,5.6589203]
[1734555107390,37.64822977,209.44,209.23,5.6589203]
[1734555107595,0.83774116,209.43,209.24,2.9799]
[1734555107796,37.64822977,209.4,209.24,2.9799]
[1734555108299,5.69979817,209.42,209.24,2.9799]
[1734555108300,37.64822977,209.36,209.24,2.9799]
[1734555108996,2.3903,209.39,209.33,2.3909]
[1734555109194,37.64822977,209.44,209.25,37.64822977]
[1734555109699,2.3899,209.43,209.36,2.3905]
[1734555109902,37.64822977,209.44,209.25,37.64822977]
[1734555110293,37.64822977,209.4,209.25,37.64822977]
[1734555110595,37.64822977,209.4,209.24,2.9799]
[1734555110992,40.03842977,209.4,209.33,2.3908]
[1734555111201,37.64822977,209.4,209.25,37.64822977]
[1734555111501,2.3899,209.43,209.3,2.3912]
[1734555111701,37.64822977,209.36,209.24,2.9799]
[1734555111904,37.64822977,209.32,209.12,5.79195088]
[1734555112200,37.64822977,209.24,209.12,5.79195088]
[1734555112801,37.64822977,209.28,209.12,5.79195088]
[1734555113001,92.30822977,209.33,209.13,3.165]
[1734555113204,37.64822977,209.29,209.13,3.165]
[1734555113402,0.8373486,209.28,209.13,3.165]
[1734555113602,2.3922,209.22,209.16,2.3929]
[1734555113802,37.64822977,209.25,209.12,5.79195088]
[1734555114098,2.3923,209.22,209.12,5.79195088]
[1734555114403,37.64822977,209.25,209.12,5.79195088]
[1734555114805,2.3924,209.21,209.15,2.393]
[1734555115202,37.64822977,209.25,209.19,2.3925]
[1734555115399,37.64822977,209.29,209.12,5.79195088]
[1734555116099,37.64822977,209.29,209.13,2.9912]
[1734555116304,37.64822977,209.25,209.12,5.79195088]
[1734555117002,37.64822977,209.29,209.13,37.64822977]
[1734555117210,37.64822977,209.33,209.14,2.9912]
[1734555117605,0.83776728,209.32,209.14,2.9912]
[1734555117908,2.3916,209.27,209.21,2.3922]
[1734555118108,0.83776728,209.32,209.14,2.9912]
[1734555119008,0.83776728,209.32,209.3,2.3913]
[1734555119208,0.83776728,209.32,209.2,37.64822977]
[1734555119410,0.83776728,209.32,209.29,2.3913]
[1734555119810,0.83776728,209.32,209.2,37.64822977]
[1734555120310,0.83776728,209.32,209.28,5.65473164]
[1734555120512,0.83776728,209.32,209.31,2.3911]
[1734555120711,0.83776728,209.32,209.28,5.65473164]
[1734555121205,0.83776728,209.32,209.2,37.64822977]
[1734555121413,0.83776728,209.32,209.16,37.64822977]
[1734555121611,37.64822977,209.31,209.21,5.83380962]
[1734555122007,37.64822977,209.23,209.09,6.2665]
[1734555122611,37.64822977,209.27,209.09,6.2665]
[1734555123014,37.64822977,209.27,209.12,5.67459882]
[1734555123315,37.64822977,209.23,209.09,6.2665]
[1734555123618,37.64822977,209.23,209.05,3.1771]
[1734555123619,37.64822977,209.19,209.05,3.1771]
[1734555123817,37.64822977,209.15,209.0,12.48871513]
[1734555124014,37.64822977,209.22,208.97,6.1943]
[1734555124015,37.64822977,209.11,208.97,6.1943]
[1734555124223,37.64822977,209.07,208.89,37.64822977]
[1734555124418,37.64822977,209.11,208.98,5.70676254]
[1734555124811,37.64822977,209.11,209.02,2.3944]
[1734555125013,37.64822977,209.11,208.99,4.85536707]
[1734555125215,37.64822977,209.15,208.99,4.85536707]
[1734555125424,2.3927,209.18,209.06,2.394]
[1734555125713,37.64822977,209.19,209.01,37.64822977]
[1734555125921,37.64822977,209.15,208.98,5.70676254]
[1734555126120,159.43192934,209.2,209.0,4.85554409]
[1734555126121,37.64822977,209.11,209.0,4.85554409]
[1734555126417,37.64822977,209.07,209.0,4.85554409]
[1734555126615,37.64822977,209.03,209.0,4.85554409]
[1734555127420,37.64822977,209.03,208.91,5.7221857]
[1734555128018,54.7,209.1,208.91,5.7221857]
[1734555128019,37.64822977,209.07,208.91,5.7221857]
[1734555128222,0.83953444,209.06,208.92,4.84821252]
[1734555128519,0.83953444,209.06,208.91,5.7221857]
[1734555128711,37.64822977,209.07,208.92,4.84612119]
[1734555128921,37.64822977,209.03,208.91,5.7221857]
[1734555129719,37.64822977,209.03,208.85,37.64822977]
[1734555129917,37.64822977,208.99,208.82,6.1774]
[1734555130324,37.64822977,208.99,208.83,4.84751699]
[1734555130618,37.64822977,208.95,208.85,5.87665918]
[1734555131215,40.04442977,208.87,208.85,5.87665918]
[1734555131416,0.83819944,208.94,208.85,5.87665918]
[1734555131417,37.64822977,208.94,208.85,5.87665918]
[1734555131619,37.64822977,208.94,208.8,4.85015257]
[1734555131922,37.64822977,208.98,208.8,4.85015257]
[1734555132122,37.64822977,208.98,208.83,37.64822977]
[1734555132426,37.64822977,209.02,208.84,4.84720655]
[1734555132721,43.49337437,209.06,208.87,37.64822977]
[1734555132933,37.64822977,209.06,208.88,4.84720655]
[1734555133224,37.64822977,209.06,208.89,10.6237548]
[1734555133416,37.64822977,209.02,208.9,4.84720655]
[1734555133620,37.64822977,209.02,208.91,4.84720655]
[1734555133827,37.64822977,209.02,208.96,2.3951]
[1734555134026,37.64822977,209.02,208.89,5.77654825]
[1734555134027,37.64822977,209.06,208.9,37.64822977]
[1734555134228,5.65405897,209.09,208.89,5.77654825]
[1734555134528,37.64822977,209.06,208.89,5.77654825]
[1734555135029,37.64822977,209.02,208.9,4.85334644]
[1734555135226,37.64822977,209.02,208.89,5.77654825]
[1734555135429,37.64822977,209.02,208.95,2.3952]
[1734555135627,37.64822977,209.02,208.89,5.77654825]
[1734555135923,2.3951,208.97,208.9,4.85468507]
[1734555136121,37.64822977,208.98,208.82,37.64822977]
[1734555136427,37.64822977,209.06,208.86,37.64822977]
[1734555136930,57.0937,209.1,209.01,2.3946]
[1734555137121,54.7,209.1,208.9,37.64822977]
[1734555137330,54.7,209.1,208.94,37.64822977]
[1734555137623,54.7,209.1,208.83,6.1896]
[1734555137624,54.7,209.1,208.9,37.64822977]
[1734555137837,37.64822977,209.07,208.96,5.86744651]
[1734555138219,37.64822977,209.07,208.95,2.3953]
[1734555138421,37.64822977,209.07,208.96,4.85302351]
[1734555138630,37.64822977,209.03,208.96,4.85302351]
[1734555139130,54.7,209.1,208.96,4.85302351]
[1734555139131,37.64822977,208.99,208.96,4.85302351]
[1734555139438,37.64822977,209.03,208.96,4.85302351]
[1734555139627,37.64822977,209.07,208.96,4.85302351]
[1734555139827,37.64822977,209.11,208.96,4.85302351]
[1734555140025,92.38822977,209.22,208.97,4.84697552]
[1734555140026,37.64822977,209.15,208.97,4.84697552]
[1734555140326,92.38822977,209.22,208.98,37.64822977]
[1734555140327,37.64822977,209.19,208.98,37.64822977]
[1734555140521,54.74,209.22,209.02,37.64822977]
[1734555140728,54.74,209.22,209.06,37.64822977]
[1734555140928,37.64822977,209.23,209.07,3.1632]
[1734555141221,37.64822977,209.18,209.07,3.1632]
[1734555141427,37.64822977,209.18,208.98,6.1629]
[1734555141736,37.64822977,209.1,208.99,4.84664097]
[1734555141923,37.64822977,209.06,208.99,4.84664097]
[1734555142129,37.64822977,209.1,209.0,4.84664097]
[1734555142329,37.64822977,209.1,208.97,5.84704722]
[1734555142531,37.64822977,209.14,208.97,5.84704722]
[1734555142833,54.74,209.17,208.98,42.4963773]
[1734555143129,54.74,209.17,208.99,4.84814753]
[1734555143329,37.64822977,209.14,208.99,4.84814753]
[1734555143825,54.74,209.17,209.0,4.84814753]
[1734555144130,37.64822977,209.22,209.02,37.64822977]
[1734555144325,37.64822977,209.26,209.06,37.64822977]
[1734555144526,37.64822977,209.26,209.1,37.64822977]
[1734555144927,37.64822977,209.26,209.06,37.64822977]
[1734555145129,37.64822977,209.26,209.16,2.3929]
[1734555145326,37.64822977,209.26,209.03,11.03824753]
[1734555145532,37.64822977,209.26,209.11,4.84814753]
[1734555145734,54.72,209.29,209.14,5.81906426]
[1734555145930,54.72,209.29,209.15,4.84814753]
[1734555146131,54.72,209.29,209.23,2.3921]
[1734555146637,37.64822977,209.3,209.17,4.84814753]
[1734555146929,37.64822977,209.3,209.18,4.84814753]
[1734555147136,37.64822977,209.3,209.14,5.81906426]
[1734555147333,37.64822977,209.34,209.27,2.3916]
[1734555147527,37.64822977,209.34,209.15,4.8455118]
[1734555147734,37.64822977,209.34,209.16,4.8455118]
[1734555147936,37.64822977,209.3,209.17,4.8455118]
[1734555148230,37.64822977,209.3,209.18,4.8455118]
[1734555148435,37.64822977,209.3,209.19,4.8455118]
[1734555148936,37.64822977,209.26,209.14,5.81906426]
[1734555149137,37.64822977,209.22,209.04,37.64822977]
[1734555149332,37.64822977,209.22,209.04,40.63622977]
[1734555149537,37.64822977,209.22,209.05,4.84623969]
[1734555150036,37.64822977,209.22,209.12,5.80246574]
[1734555150232,37.64822977,209.26,209.21,2.3924]
[1734555150536,37.64822977,209.26,209.12,5.80246574]
[1734555150740,37.64822977,209.26,209.13,4.84717351]
[1734555151039,37.64822977,209.26,209.12,5.80246574]
[1734555151735,37.64822977,209.3,209.12,43.45069551]
[1734555151942,37.64822977,209.3,209.13,4.84788817]
[1734555152143,37.64822977,209.3,209.14,4.84788817]
[1734555152336,5.84835774,209.35,209.26,2.3918]
[1734555152337,2.3911,209.33,209.26,2.3918]
[1734555152532,37.64822977,209.34,209.15,4.84788817]
[1734555152739,0.83997558,209.33,209.16,4.84788817]
[1734555152937,37.64822977,209.34,209.17,4.84788817]
[1734555153140,37.64822977,209.38,209.2,37.64822977]
[1734555153939,37.64822977,209.38,209.25,5.78115189]
[1734555154941,37.64822977,209.34,209.25,5.78115189]
[1734555155540,37.64822977,209.34,209.2,4.84958283]
[1734555155742,37.64822977,209.3,209.22,5.64453175]
[1734555155939,37.64822977,209.34,209.22,5.64453175]
[1734555156137,0.84014958,209.33,209.22,5.64453175]
[1734555156339,2.3915,209.29,209.22,8.03663175]
[1734555156540,37.64822977,209.26,209.08,37.64822977]
[1734555156740,37.64822977,209.33,209.09,4.85530209]
[1734555156741,37.64822977,209.22,209.09,4.85530209]
[1734555156941,37.64822977,209.22,209.1,10.46078724]
[1734555157136,37.64822977,209.18,209.05,4.85530209]
[1734555157643,37.64822977,209.18,209.05,10.53600938]
[1734555157844,0.8402377,209.17,209.05,5.68070729]
[1734555158040,2.3934,209.12,209.06,2.394]
[1734555158237,37.64822977,209.14,209.03,5.65459885]
[1734555159145,37.64822977,209.14,209.03,8.04889885]
[1734555159449,37.64822977,209.14,209.03,5.65459885]
[1734555159750,37.64822977,209.14,208.96,37.64822977]
[1734555159950,37.64822977,209.1,208.92,37.64822977]
[1734555160243,5.85342926,209.21,208.97,4.857464]
[1734555160452,37.64822977,209.12,208.97,4.857464]
[1734555160645,37.64822977,209.12,208.95,5.76033525]
[1734555160646,37.64822977,209.12,208.96,37.64822977]
[1734555160845,37.64822977,209.16,208.97,4.8572518]
[1734555161049,37.64822977,209.16,208.98,4.8572518]
[1734555161251,2.3925,209.19,209.13,2.393]
[1734555161450,37.64822977,209.2,209.0,37.64822977]
[1734555161745,2.3927,209.17,209.09,2.3934]
[1734555161949,37.64822977,209.2,209.01,4.8572518]
[1734555162251,37.64822977,209.2,209.0,37.64822977]
[1734555162252,37.64822977,209.16,209.02,4.85694918]
[1734555162548,37.64822977,209.16,209.03,4.85694918]
[1734555162947,37.64822977,209.11,208.95,5.76033525]
[1734555163148,37.64822977,209.11,208.96,4.85854771]
[1734555163649,37.64822977,209.11,209.05,2.394]
[1734555163847,37.64822977,209.15,208.96,42.50677748]
[1734555164050,37.64822977,209.15,209.0,37.64822977]
[1734555164246,40.04112977,209.15,209.0,37.64822977]
[1734555164552,5.60410617,209.23,209.01,4.85854771]
[1734555164755,37.64822977,209.2,209.02,4.85854771]
[1734555165153,2.393,209.14,209.02,4.85854771]
[1734555165348,37.64822977,209.16,209.02,4.85854771]
[1734555165756,37.64822977,209.22,209.03,4.85854771]
[1734555166051,92.32822977,209.26,209.04,42.50677748]
[1734555166254,2.392,209.23,209.13,2.3931]
[1734555166452,92.32822977,209.26,209.08,37.64822977]
[1734555166651,37.64822977,209.3,209.12,37.64822977]
[1734555166853,0.84453578,209.29,209.13,4.85854771]
[1734555167053,37.64822977,209.3,209.13,4.85854771]
[1734555167248,37.64822977,209.3,209.14,4.85854771]
[1734555167449,37.64822977,209.3,209.15,4.85854771]
[1734555167851,2.3919,209.23,209.16,7.25114771]
[1734555168053,37.64822977,209.3,209.18,5.68469607]
[1734555168252,37.64822977,209.33,209.18,5.68469607]
[1734555168455,37.64822977,209.29,209.18,5.68469607]
[1734555169455,37.64822977,209.33,209.18,5.68469607]
[1734555169652,37.64822977,209.33,209.19,4.85943037]
[1734555170351,5.88396767,209.35,209.18,5.68469607]
[1734555170352,37.64822977,209.29,209.18,5.68469607]
[1734555170752,2.3915,209.27,209.18,5.68469607]
[1734555170960,37.64822977,209.33,209.19,4.85805549]
[1734555171153,40.03912977,209.33,209.2,4.85805549]
[1734555171361,37.64822977,209.33,209.2,4.85805549]
[1734555171659,37.64822977,209.33,209.21,4.85805549]
[1734555171860,37.64822977,209.33,209.19,4.85805549]
[1734555172059,37.64822977,209.33,209.2,4.85805549]
[1734555172257,37.64822977,209.33,209.26,2.3916]
[1734555172456,37.64822977,209.37,209.19,43.52062977]
[1734555172658,0.84574205,209.36,209.19,46.53332977]
[1734555172858,2.3903,209.37,209.27,2.3914]
[1734555173063,54.7,209.38,209.24,4.79150519]
[1734555173357,54.7,209.38,209.23,37.64822977]
[1734555173755,54.7,209.38,209.24,4.7906339]
[1734555173956,54.7,209.38,209.23,37.64822977]
[1734555174156,37.64822977,209.45,209.23,37.64822977]
[1734555174365,1.69412286,209.44,209.24,4.79000069]
[1734555174665,2.39,209.41,209.35,2.3905]
[1734555174965,0.84705045,209.44,209.26,4.79000069]
[1734555175262,0.84786467,209.43,209.26,4.79000069]
[1734555175461,37.64822977,209.37,209.27,4.79000069]
[1734555175660,37.64822977,209.37,209.21,37.64822977]
[1734555175963,37.64822977,209.41,209.25,37.64822977]
[1734555176265,0.84705045,209.44,209.26,4.79000069]
[1734555176467,37.64822977,209.41,209.27,4.79000069]
[1734555176764,0.84705045,209.44,209.28,4.79000069]
[1734555177064,3.23665045,209.44,209.29,4.79000069]
[1734555177266,0.84705045,209.44,209.31,5.6191826]
[1734555177465,37.64822977,209.41,209.31,5.6191826]
[1734555178067,2.3902,209.38,209.31,8.0100826]
[1734555178267,21.05437862,209.43,209.24,21.05437862]
[1734555178567,21.05437862,209.43,209.3,5.66739129]
[1734555178769,2.3902,209.39,209.3,5.66739129]
[1734555178965,0.84846626,209.42,209.3,5.66739129]
[1734555179267,0.84705045,209.44,209.38,21.05437862]
[1734555179659,2.3885,209.53,209.43,2.3897]
[1734555179870,2.3885,209.53,209.38,21.05437862]
[1734555180162,2.3884,209.55,209.38,21.05437862]
[1734555180362,21.05437862,209.57,209.38,21.05437862]
[1734555180665,21.05437862,209.53,209.39,4.78270127]
[1734555181068,21.05437862,209.53,209.4,4.78270127]
[1734555181260,21.05437862,209.53,209.41,5.73985692]
[1734555181571,21.05437862,209.53,209.42,4.78270127]
[1734555181764,2.3889,209.5,209.44,2.3895]
[1734555182168,21.05437862,209.53,209.41,5.73985692]
[1734555182370,21.05437862,209.53,209.47,2.3892]
[1734555182667,21.05437862,209.53,209.41,5.73985692]
[1734555182866,21.05437862,209.53,209.35,6.4197]
[1734555183062,21.05437862,209.45,209.36,4.78205737]
[1734555183267,21.05437862,209.49,209.31,4.78205737]
[1734555183268,21.05437862,209.37,209.31,4.78205737]
[1734555183464,2.3909,209.32,209.31,4.78205737]
[1734555183767,21.05437862,209.33,209.31,3.93500692]
[1734555183971,21.05437862,209.33,209.28,2.3914]
[1734555184171,5.63541518,209.38,209.23,5.67446833]
[1734555184465,34.23808481,209.4,209.23,5.67446833]
[1734555184665,34.23808481,209.44,209.25,34.23808481]
[1734555184870,34.23808481,209.44,209.26,3.1254]
[1734555185270,34.23808481,209.4,209.26,3.1254]
[1734555185875,34.23808481,209.44,209.26,3.1254]
[1734555186171,34.23808481,209.44,209.28,34.23808481]
[1734555186372,34.23808481,209.48,209.32,34.23808481]
[1734555186571,2.3888,209.51,209.32,34.23808481]
[1734555186871,34.23808481,209.52,209.33,6.179]
[1734555187076,34.23808481,209.52,209.36,34.23808481]
[1734555187473,34.23808481,209.56,209.41,5.61941639]
[1734555187873,57.0484,209.55,209.41,5.61941639]
[1734555188171,358.3738629,209.69,209.41,5.61941639]
[1734555188172,40.10469129,209.6,209.41,5.61941639]
[1734555188377,2.3878,209.59,209.41,5.61941639]
[1734555188573,34.23808481,209.6,209.41,5.61941639]
[1734555188876,34.23808481,209.6,209.44,34.23808481]
[1734555190071,5.79319504,209.63,209.44,34.23808481]
[1734555190574,34.23808481,209.6,209.41,5.61941639]
[1734555191376,34.23808481,209.6,209.44,34.23808481]
[1734555191577,5.79319504,209.63,209.44,34.23808481]
[1734555191779,2.388,209.58,209.51,2.3887]
[1734555191983,34.23808481,209.6,209.44,34.23808481]
[1734555192979,2.3884,209.55,209.49,2.389]
[1734555193179,34.23808481,209.6,209.42,0.25744]
[1734555193374,34.23808481,209.56,209.42,0.25744]
[1734555193778,34.23808481,209.52,209.42,0.25744]
[1734555194076,2.3897,209.43,209.42,0.25744]
[1734555194676,34.23808481,209.44,209.42,0.25744]
[1734555194874,88.85808481,209.5,209.42,0.25744]
[1734555194875,34.23808481,209.48,209.42,0.25744]
[1734555195079,54.62,209.5,209.42,0.25744]
[1734555195277,34.23808481,209.52,209.42,0.25744]
[1734555195477,34.23808481,209.56,209.48,2.389]
[1734555195782,2.3883,209.55,209.42,0.25744]
[1734555195979,34.23808481,209.56,209.46,2.3893]
[1734555196281,2.3884,209.54,209.42,0.25744]
[1734555196480,34.23808481,209.56,209.42,0.25744]